lending/lending_fUSD_20240411
["ID","MTS","AMOUNT","RATE_DAILY","PERIOD"]
[322142911,1712848261080,-176.854421,0.00032876,7]
[322142912,1712848261091,-176.854421,0.00032876,7]
[322142913,1712848261102,-500.0,0.00032876,2]
[322142914,1712848261112,-500.0,0.00032876,2]
[322142915,1712848261124,-500.0,0.00032876,2]
[322142916,1712848261135,-7338.42,0.00032876,2]
[322142917,1712848261144,-500.0,0.00032876,2]
[322142918,1712848261154,-1767.27,0.00032876,2]
[322142919,1712848261165,-5012.6,0.00032876,2]
[322142920,1712848261174,-690.39,0.00032876,2]
[322142921,1712848261184,-500.0,0.00032876,2]
[322142922,1712848261195,-4659.53,0.00032876,2]
[322142923,1712848261205,-500.0,0.00032876,2]
[322142924,1712848261215,-500.0,0.00032876,2]
[322142925,1712848261225,-992.21,0.00032876,2]
[322142926,1712848261235,-500.0,0.00032876,2]
[322142927,1712848261244,-500.0,0.00032876,2]
[322142928,1712848261254,-500.0,0.00032876,2]
[322142929,1712848261263,-437.35451346,0.00032876,2]
[322142930,1712848261273,-889.55,0.00032876,2]
[322142931,1712848261283,-4297.37,0.00032876,2]
[322142932,1712848261293,-597.59,0.00032876,2]
[322142933,1712848261302,-500.0,0.00032876,2]
[322142934,1712848261312,-151.0,0.00032876,7]
[322142935,1712848261321,-1758.41,0.00032876,2]
[322142936,1712848261332,-1279.79,0.00032876,2]
[322142937,1712848261341,-19896.6,0.00032876,2]
[322142938,1712848261350,-151.0,0.00032876,7]
[322142939,1712848261360,-151.0,0.00032876,7]
[322142940,1712848261369,-500.0,0.00032876,2]
[322142941,1712848261378,-500.0,0.00032876,2]
[322142942,1712848261388,-151.0,0.00032876,7]
[322142943,1712848261397,-5945.27,0.00032876,2]
[322142944,1712848261407,-3217.79,0.00032876,2]
[322142945,1712848261416,-1291.65,0.00032876,2]
[322142946,1712848261425,-546.76261557,0.00032876,2]
[322142947,1712848261435,-4079.17,0.00032876,2]
[322142948,1712848261444,-151.0,0.00032876,7]
[322142949,1712848261453,-294.822118,0.00032876,7]
[322142950,1712848261463,-151.0,0.00032876,7]
[322142951,1712848261473,-500.0,0.00032876,2]
[322142952,1712848261482,-294.822118,0.00032876,7]
[322142953,1712848261491,-294.822118,0.00032876,7]
[322142954,1712848261500,-500.0,0.00032876,2]
[322142955,1712848261509,-507.47142609,0.00032876,2]
[322142956,1712848261519,-294.822118,0.00032876,7]
[322142957,1712848261528,-500.0,0.00032876,2]
[322142958,1712848261538,-294.822118,0.00032876,7]
[322142959,1712848261547,-500.0,0.00032876,2]
[322142960,1712848261557,-294.822118,0.00032876,7]
[322142961,1712848261567,-543.59,0.00032876,2]
[322142962,1712848261577,-3604.71,0.00032876,2]
[322142963,1712848261587,-5161.18,0.00032876,2]
[322142964,1712848261596,-911.15,0.00032876,2]
[322142965,1712848261605,-500.0,0.00032876,2]
[322142966,1712848261614,-2277.44,0.00032876,2]
[322142967,1712848261623,-10563.24,0.00032876,2]
[322142968,1712848261632,-500.0,0.00032876,2]
[322142969,1712848261641,-500.0,0.00032876,2]
[322142970,1712848261652,-775.17,0.00032876,2]
[322142971,1712848261661,-500.0,0.00032876,2]
[322142972,1712848261670,-3173.36,0.00032876,2]
[322142973,1712848261679,-2785.72,0.00032876,2]
[322142974,1712848261689,-500.0,0.00032876,2]
[322142975,1712848261699,-560.13,0.00032876,2]
[322142976,1712848261708,-2989.71,0.00032876,2]
[322142977,1712848261717,-151.0,0.00032876,7]
[322142978,1712848261726,-500.0,0.00032876,2]
[322142979,1712848261735,-5672.86,0.00032876,2]
[322142980,1712848261745,-151.0,0.00032876,7]
[322142981,1712848261754,-500.0,0.00032876,2]
[322142982,1712848261763,-9103.2,0.00032876,2]
[322142983,1712848261773,-151.0,0.00032876,7]
[322142984,1712848261782,-500.0,0.00032876,2]
[322142985,1712848261792,-500.0,0.00032876,2]
[322142986,1712848261801,-192.858646,0.00032876,7]
[322142987,1712848261810,-2129.4,0.00032876,2]
[322142988,1712848261820,-500.0,0.00032876,2]
[322142989,1712848261829,-192.858646,0.00032876,7]
[322142990,1712848261840,-500.0,0.00032876,2]
[322142991,1712848261849,-4648.26,0.00032876,2]
[322142992,1712848261858,-192.858646,0.00032876,7]
[322142993,1712848261866,-500.0,0.00032876,2]
[322142994,1712848261877,-500.0,0.00032876,2]
[322142995,1712848261888,-1027.57,0.00032876,2]
[322142996,1712848261898,-500.0,0.00032876,2]
[322142997,1712848261908,-500.0,0.00032876,2]
[322142998,1712848261918,-500.0,0.00032876,2]
[322142999,1712848261927,-500.0,0.00032876,2]
[322143000,1712848261937,-5031.28,0.00032876,2]
[322143001,1712848261949,-568.88,0.00032876,2]
[322143002,1712848261958,-500.0,0.00032876,2]
[322143003,1712848261967,-500.0,0.00032876,2]
[322143004,1712848261979,-964.27,0.00032876,2]
[322143005,1712848261988,-500.0,0.00032876,2]
[322143006,1712848261998,-658.15,0.00032876,2]
[322143007,1712848262009,-4141.29,0.00032876,2]
[322143008,1712848262019,-500.0,0.00032876,2]
[322143009,1712848262029,-192.858646,0.00032876,7]
[322143010,1712848262039,-192.858646,0.00032876,7]
[322143011,1712848262049,-500.0,0.00032876,2]
[322143012,1712848262058,-607.38,0.00032876,2]
[322143013,1712848262068,-192.858646,0.00032876,7]
[322143014,1712848262077,-500.0,0.00032876,2]
[322143015,1712848262092,-500.0,0.00032876,2]
[322143016,1712848262102,-283.250409,0.00032876,7]
[322143017,1712848262111,-500.0,0.00032876,2]
[322143018,1712848262123,-283.250409,0.00032876,7]
[322143019,1712848262133,-500.0,0.00032876,2]
[322143020,1712848262143,-2761.87,0.00032876,2]
[322143021,1712848262154,-500.0,0.00032876,2]
[322143022,1712848262163,-283.250409,0.00032876,7]
[322143023,1712848262173,-500.0,0.00032876,2]
[322143024,1712848262182,-985.0,0.00032876,2]
[322143025,1712848262194,-500.0,0.00032876,2]
[322143026,1712848262203,-1224.97,0.00032876,2]
[322143027,1712848262212,-500.0,0.00032876,2]
[322143028,1712848262222,-500.0,0.00032876,2]
[322143029,1712848262232,-151.0,0.00032876,7]
[322143030,1712848262241,-500.0,0.00032876,2]
[322143031,1712848262251,-151.0,0.00032876,7]
[322143032,1712848262260,-151.0,0.00032876,7]
[322143033,1712848262269,-500.0,0.00032876,2]
[322143034,1712848262278,-7538.84,0.00032876,2]
[322143035,1712848262287,-540.47824428,0.00032876,2]
[322143036,1712848262297,-317.3,0.00032876,2]
[322143037,1712848262305,-778.8,0.00032876,2]
[322143038,1712848262315,-500.0,0.00032876,2]
[322143039,1712848262324,-500.0,0.00032876,2]
[322143040,1712848262335,-500.0,0.00032876,2]
[322143041,1712848262344,-1518.69,0.00032876,2]
[322143042,1712848262354,-283.250409,0.00032876,7]
[322143043,1712848262363,-2169.37,0.00032876,2]
[322143044,1712848262373,-283.250409,0.00032876,7]
[322143045,1712848262383,-9206.29,0.00032876,2]
[322143046,1712848262393,-283.250409,0.00032876,7]
[322143047,1712848262402,-500.0,0.00032876,2]
[322143048,1712848262411,-2012.8,0.00032876,2]
[322143049,1712848262420,-153.545955,0.00032876,7]
[322143050,1712848262429,-500.0,0.00032876,2]
[322143051,1712848262438,-151.0,0.00032876,7]
[322143052,1712848262447,-151.0,0.00032876,7]
[322143053,1712848262457,-151.0,0.00032876,7]
[322143054,1712848262466,-500.0,0.00032876,2]
[322143055,1712848262476,-2919.43,0.00032876,2]
[322143056,1712848262485,-8008.49,0.00032876,2]
[322143057,1712848262494,-417.09995591,0.00032876,2]
[322143058,1712848262503,-151.0,0.00032876,7]
[322143059,1712848262512,-3742.94,0.00032876,2]
[322143060,1712848262521,-232.85116,0.00032876,7]
[322143061,1712848262530,-506.02,0.00032876,2]
[322143062,1712848262539,-1301.75,0.00032876,2]
[322143063,1712848262549,-500.0,0.00032876,2]
[322143064,1712848262558,-1000.08,0.00032876,2]
[322143065,1712848262567,-500.0,0.00032876,2]
[322143066,1712848262577,-500.0,0.00032876,2]
[322143067,1712848262588,-153.545955,0.00032876,7]
[322143068,1712848262597,-500.0,0.00032876,2]
[322143069,1712848262607,-500.0,0.00032876,2]
[322143070,1712848262616,-500.0,0.00032876,2]
[322143071,1712848262625,-153.545955,0.00032876,7]
[322143072,1712848262634,-991.23,0.00032876,2]
[322143073,1712848262643,-500.0,0.00032876,2]
[322143074,1712848262653,-21161.68,0.00032876,2]
[322143075,1712848262662,-1308.61,0.00032876,2]
[322143076,1712848262672,-500.0,0.00032876,2]
[322143077,1712848262681,-507.78,0.00032876,2]
[322143078,1712848262691,-704.99,0.00032876,2]
[322143079,1712848262700,-509.23611205,0.00032876,2]
[322143080,1712848262710,-7224.77,0.00032876,2]
[322143081,1712848262719,-5300.74,0.00032876,2]
[322143082,1712848262728,-153.545955,0.00032876,7]
[322143083,1712848262737,-35978.99,0.00032876,2]
[322143084,1712848262745,-153.545955,0.00032876,7]
[322143085,1712848262755,-153.545955,0.00032876,7]
[322143086,1712848262763,-275.6244235,0.00032876,2]
[322143087,1712848262773,-516.43237713,0.00032876,2]
[322143088,1712848262782,-500.0,0.00032876,2]
[322143089,1712848262791,-500.0,0.00032876,2]
[322143090,1712848262800,-500.0,0.00032876,2]
[322143091,1712848262809,-10031.99,0.00032876,2]
[322143092,1712848262819,-500.0,0.00032876,2]
[322143093,1712848262828,-517.226671,0.00032876,2]
[322143094,1712848262840,-558.64,0.00032876,2]
[322143095,1712848262849,-14897.92,0.00032876,2]
[322143096,1712848262858,-575.91,0.00032876,2]
[322143097,1712848262867,-500.0,0.00032876,2]
[322143098,1712848262876,-1584.52,0.00032876,2]
[322143099,1712848262886,-1297.25,0.00032876,2]
[322143100,1712848262895,-500.0,0.00032876,2]
[322143101,1712848262904,-500.0,0.00032876,2]
[322143102,1712848262914,-3964.47,0.00032876,2]
[322143103,1712848262923,-500.0,0.00032876,2]
[322143104,1712848262932,-5409.0,0.00032876,2]
[322143105,1712848262941,-500.0,0.00032876,2]
[322143106,1712848262951,-3991.52,0.00032876,2]
[322143107,1712848262960,-500.0,0.00032876,2]
[322143108,1712848262969,-151.0,0.00032876,7]
[322143109,1712848262978,-151.0,0.00032876,7]
[322143110,1712848262987,-151.0,0.00032876,7]
[322143111,1712848262997,-334.861198,0.00032876,7]
[322143112,1712848263006,-500.0,0.00032876,2]
[322143113,1712848263015,-334.861198,0.00032876,7]
[322143114,1712848263024,-334.861198,0.00032876,7]
[322143115,1712848263034,-5946.53,0.00032876,2]
[322143116,1712848263043,-500.0,0.00032876,2]
[322143117,1712848263052,-500.0,0.00032876,2]
[322143118,1712848263061,-500.0,0.00032876,2]
[322143119,1712848263071,-334.861198,0.00032876,7]
[322143120,1712848263080,-791.54,0.00032876,2]
[322143121,1712848263093,-334.861198,0.00032876,7]
[322143122,1712848263103,-500.0,0.00032876,2]
[322143123,1712848263114,-22793.71,0.00032876,2]
[322143124,1712848263127,-334.861198,0.00032876,7]
[322143125,1712848263137,-500.0,0.00032876,2]
[322143126,1712848263146,-4357.24,0.00032876,2]
[322143127,1712848263156,-500.0,0.00032876,2]
[322143128,1712848263165,-500.0,0.00032876,2]
[322143129,1712848263175,-10382.84,0.00032876,2]
[322143130,1712848263184,-1706.6,0.00032876,2]
[322143131,1712848263194,-2653.13,0.00032876,2]
[322143132,1712848263204,-4149.05,0.00032876,2]
[322143133,1712848263213,-8127.3,0.00032876,2]
[322143134,1712848263223,-500.0,0.00032876,2]
[322143135,1712848263232,-4471.62,0.00032876,2]
[322143136,1712848263241,-1014.14,0.00032876,2]
[322143137,1712848263250,-351.83518,0.00032876,7]
[322143138,1712848263260,-500.0,0.00032876,2]
[322143139,1712848263269,-500.0,0.00032876,2]
[322143140,1712848263281,-351.83518,0.00032876,7]
[322143141,1712848263291,-351.83518,0.00032876,7]
[322143142,1712848263300,-1360.57,0.00032876,2]
[322143143,1712848263310,-500.0,0.00032876,2]
[322143144,1712848263320,-4626.23,0.00032876,2]
[322143145,1712848263329,-2568.19,0.00032876,2]
[322143146,1712848263341,-500.0,0.00032876,2]
[322143147,1712848263350,-500.0,0.00032876,2]
[322143148,1712848263359,-500.0,0.00032876,2]
[322143149,1712848263368,-351.83518,0.00032876,7]
[322143150,1712848263378,-351.83518,0.00032876,7]
[322143151,1712848263388,-351.83518,0.00032876,7]
[322143152,1712848263397,-8371.92,0.00032876,2]
[322143153,1712848263407,-882.15,0.00032876,2]
[322143154,1712848263416,-500.0,0.00032876,2]
[322143155,1712848263426,-571.79,0.00032876,2]
[322143156,1712848263435,-500.0,0.00032876,2]
[322143157,1712848263445,-3866.72,0.00032876,2]
[322143158,1712848263454,-526.24,0.00032876,2]
[322143159,1712848263464,-500.0,0.00032876,2]
[322143160,1712848263474,-700.86,0.00032876,2]
[322143161,1712848263484,-9097.61,0.00032876,2]
[322143162,1712848263494,-552.67378354,0.00032876,2]
[322143163,1712848263503,-2966.64,0.00032876,2]
[322143164,1712848263512,-500.0,0.00032876,2]
[322143165,1712848263521,-4850.41,0.00032876,2]
[322143166,1712848263530,-12609.61,0.00032876,2]
[322143167,1712848263540,-584.04,0.00032876,2]
[322143168,1712848263549,-1746.74,0.00032876,2]
[322143169,1712848263558,-500.0,0.00032876,2]
[322143170,1712848263567,-500.0,0.00032876,2]
[322143171,1712848263576,-26995.96,0.00032876,2]
[322143172,1712848263587,-500.0,0.00032876,2]
[322143173,1712848263596,-2164.81,0.00032876,2]
[322143174,1712848263605,-500.0,0.00032876,2]
[322143175,1712848263614,-959.964371,0.00032876,7]
[322143176,1712848263623,-959.964371,0.00032876,7]
[322143177,1712848263632,-508.75379388,0.00032876,2]
[322143178,1712848263642,-500.0,0.00032876,2]
[322143179,1712848263652,-161.021274,0.00032876,7]
[322143180,1712848263662,-959.964371,0.00032876,7]
[322143181,1712848263671,-161.021274,0.00032876,7]
[322143182,1712848263681,-161.021274,0.00032876,7]
[322143183,1712848263690,-959.964371,0.00032876,7]
[322143184,1712848263700,-959.964371,0.00032876,7]
[322143185,1712848263709,-959.964371,0.00032876,7]
[322143186,1712848263718,-500.0,0.00032876,2]
[322143187,1712848263727,-4552.47,0.00032876,2]
[322143188,1712848263737,-500.0,0.00032876,2]
[322143189,1712848263746,-6182.2,0.00032876,2]
[322143190,1712848263755,-523.78061071,0.00032876,2]
[322143191,1712848263764,-500.0,0.00032876,2]
[322143192,1712848263773,-500.0,0.00032876,2]
[322143193,1712848263783,-161.021274,0.00032876,7]
[322143194,1712848263792,-923.37,0.00032876,2]
[322143195,1712848263801,-1432.47,0.00032876,2]
[322143196,1712848263811,-161.021274,0.00032876,7]
[322143197,1712848263820,-1186.21,0.00032876,2]
[322143198,1712848263829,-161.021274,0.00032876,7]
[322143199,1712848263841,-7204.23,0.00032876,2]
[322143200,1712848263850,-500.0,0.00032876,2]
[322143201,1712848263860,-1477.05,0.00032876,2]
[322143202,1712848263869,-500.0,0.00032876,2]
[322143203,1712848263879,-2173.75,0.00032876,2]
[322143204,1712848263889,-500.0,0.00032876,2]
[322143205,1712848263898,-3437.27,0.00032876,2]
[322143206,1712848263910,-500.0,0.00032876,2]
[322143207,1712848263922,-6080.92,0.00032876,2]
[322143208,1712848263933,-586.77,0.00032876,2]
[322143209,1712848263943,-8184.84,0.00032876,2]
[322143210,1712848263953,-500.0,0.00032876,2]
[322143211,1712848263962,-835.61,0.00032876,2]
[322143212,1712848263972,-450.78484259,0.00032876,2]
[322143213,1712848263981,-3242.78,0.00032876,2]
[322143214,1712848263991,-10388.77,0.00032876,2]
[322143215,1712848264000,-500.0,0.00032876,2]
[322143216,1712848264010,-1622.99,0.00032876,2]
[322143217,1712848264020,-500.0,0.00032876,2]
[322143218,1712848264029,-888.03,0.00032876,2]
[322143219,1712848264039,-5024.85,0.00032876,2]
[322143220,1712848264049,-1525.88,0.00032876,2]
[322143221,1712848264058,-544.705449,0.00032876,7]
[322143222,1712848264067,-500.0,0.00032876,2]
[322143223,1712848264076,-2766.08,0.00032876,2]
[322143224,1712848264271,-544.705449,0.00032876,7]
[322143225,1712848264292,-1168.24,0.00032876,2]
[322143226,1712848264301,-500.0,0.00032876,2]
[322143227,1712848264310,-544.705449,0.00032876,7]
[322143228,1712848264319,-196.58505653,0.00032876,2]
[322143229,1712848264329,-500.0,0.00032876,2]
[322143230,1712848264340,-505.21310169,0.00032876,2]
[322143231,1712848264349,-927.83,0.00032876,2]
[322143232,1712848264359,-73654.38,0.00032876,2]
[322143233,1712848264368,-6684.37,0.00032876,2]
[322143234,1712848264377,-4230.69,0.00032876,2]
[322143235,1712848264386,-2491.29,0.00032876,2]
[322143236,1712848264395,-500.0,0.00032876,2]
[322143237,1712848264404,-793.41,0.00032876,2]
[322143238,1712848264413,-500.0,0.00032876,2]
[322143239,1712848264422,-544.705449,0.00032876,7]
[322143240,1712848264431,-544.705449,0.00032876,7]
[322143241,1712848264440,-544.705449,0.00032876,7]
[322143242,1712848264449,-617.58,0.00032876,2]
[322143243,1712848264459,-962.41,0.00032876,2]
[322143244,1712848264468,-500.0,0.00032876,2]
[322143245,1712848264477,-500.0,0.00032876,2]
[322143246,1712848264486,-500.0,0.00032876,2]
[322143247,1712848264495,-500.0,0.00032876,2]
[322143248,1712848264504,-500.0,0.00032876,2]
[322143249,1712848264513,-1120.54,0.00032876,2]
[322143250,1712848264522,-2596.36,0.00032876,2]
[322143251,1712848264532,-3619.72,0.00032876,2]
[322143252,1712848264541,-3468.51,0.00032876,2]
[322143253,1712848264550,-48725.31,0.00032876,2]
[322143254,1712848264559,-500.0,0.00032876,2]
[322143255,1712848264569,-4892.13,0.00032876,2]
[322143256,1712848264578,-1365.22,0.00032876,2]
[322143257,1712848264589,-500.0,0.00032876,2]
[322143258,1712848264598,-226.793385,0.00032876,7]
[322143259,1712848264607,-4175.31,0.00032876,2]
[322143260,1712848264617,-226.793385,0.00032876,7]
[322143261,1712848264626,-226.793385,0.00032876,7]
[322143262,1712848264635,-508.48,0.00032876,2]
[322143263,1712848264645,-519.77,0.00032876,2]
[322143264,1712848264655,-808.71,0.00032876,2]
[322143265,1712848264665,-500.0,0.00032876,2]
[322143266,1712848264674,-500.0,0.00032876,2]
[322143267,1712848264683,-898.14,0.00032876,2]
[322143268,1712848264692,-500.0,0.00032876,2]
[322143269,1712848264702,-500.0,0.00032876,2]
[322143270,1712848264711,-226.793385,0.00032876,7]
[322143271,1712848264720,-226.793385,0.00032876,7]
[322143272,1712848264730,-226.793385,0.00032876,7]
[322143273,1712848264739,-2661.65,0.00032876,2]
[322143274,1712848264748,-8021.24,0.00032876,2]
[322143275,1712848264758,-1260.95,0.00032876,2]
[322143276,1712848264768,-1727.6,0.00032876,2]
[322143277,1712848264777,-500.0,0.00032876,2]
[322143278,1712848264786,-9842.96,0.00032876,2]
[322143279,1712848264795,-500.0,0.00032876,2]
[322143280,1712848264804,-500.0,0.00032876,2]
[322143281,1712848264814,-4830.71,0.00032876,2]
[322143282,1712848264823,-6311.47,0.00032876,2]
[322143283,1712848264834,-992.49,0.00032876,2]
[322143284,1712848264844,-500.0,0.00032876,2]
[322143285,1712848264853,-500.0,0.00032876,2]
[322143286,1712848264863,-1670.71,0.00032876,2]
[322143287,1712848264872,-500.0,0.00032876,2]
[322143288,1712848264881,-562.81094841,0.00032876,2]
[322143289,1712848264891,-500.0,0.00032876,2]
[322143290,1712848264900,-799.87,0.00032876,2]
[322143291,1712848264910,-1621.79,0.00032876,2]
[322143292,1712848264919,-500.0,0.00032876,2]
[322143293,1712848264928,-500.0,0.00032876,2]
[322143294,1712848264937,-514.23,0.00032876,2]
[322143295,1712848264947,-500.0,0.00032876,2]
[322143296,1712848264956,-524.19,0.00032876,2]
[322143297,1712848264966,-500.0,0.00032876,2]
[322143298,1712848264975,-581.7,0.00032876,2]
[322143299,1712848264985,-313.882761,0.00032876,7]
[322143300,1712848264994,-313.882761,0.00032876,7]
[322143301,1712848265003,-313.882761,0.00032876,7]
[322143302,1712848265013,-4262.22,0.00032876,2]
[322143303,1712848265022,-11160.24,0.00032876,2]
[322143304,1712848265032,-500.0,0.00032876,2]
[322143305,1712848265042,-539.19,0.00032876,2]
[322143306,1712848265052,-215.65,0.000329,2]
[322143307,1712848265062,-1000.0,0.00033,3]
[322143308,1712848265072,-1000.0,0.00033,3]
[322143309,1712848265081,-403532.0,0.00033,2]
[322143310,1712848265095,-1018.0,0.00033,30]
[322143311,1712848265105,-5350.0,0.00033,31]
[322143312,1712848265118,-39972.06905676,0.00033,3]
[322143313,1712848265128,-850.0,0.00033,3]
[322143314,1712848265138,-338.173423,0.00033,7]
[322143315,1712848265148,-353.885644,0.00033,7]
[322143316,1712848265158,-338.877614,0.00033,7]
[322143317,1712848265168,-338.173423,0.00033,7]
[322143318,1712848265178,-338.877614,0.00033,7]
[322143319,1712848265189,-353.885644,0.00033,7]
[322143320,1712848265199,-320.681158,0.00033,7]
[322143321,1712848265209,-320.681158,0.00033,7]
[322143322,1712848265219,-614.061326,0.00033,7]
[322143323,1712848265229,-614.061326,0.00033,7]
[322143324,1712848265239,-151.0,0.00033,7]
[322143325,1712848265248,-151.0,0.00033,7]
[322143326,1712848265257,-151.0,0.00033,7]
[322143327,1712848265267,-151.0,0.00033,7]
[322143328,1712848265276,-151.0,0.00033,7]
[322143329,1712848265286,-151.0,0.00033,7]
[322143330,1712848265298,-151.0,0.00033,7]
[322143331,1712848265308,-169.064216,0.00033,7]
[322143332,1712848265317,-169.064216,0.00033,7]
[322143333,1712848265326,-749.395887,0.00033,2]
[322143334,1712848265338,-749.395887,0.00033,2]
[322143335,1712848265346,-151.0,0.00033,7]
[322143336,1712848265355,-151.0,0.00033,7]
[322143337,1712848265364,-176.854421,0.00033,7]
[322143338,1712848265374,-176.854421,0.00033,7]
[322143339,1712848265383,-151.0,0.00033,7]
[322143340,1712848265392,-151.0,0.00033,7]
[322143341,1712848265401,-294.822118,0.00033,7]
[322143342,1712848265411,-294.822118,0.00033,7]
[322143343,1712848265421,-151.223449,0.00033,7]
[322143344,1712848265430,-192.858646,0.00033,7]
[322143345,1712848265440,-192.858646,0.00033,7]
[322143346,1712848265450,-283.250409,0.00033,7]
[322143347,1712848265459,-151.0,0.00033,7]
[322143348,1712848265469,-283.250409,0.00033,7]
[322143349,1712848265478,-151.0,0.00033,7]
[322143350,1712848265488,-153.545955,0.00033,7]
[322143351,1712848265498,-153.545955,0.00033,7]
[322143352,1712848265507,-151.0,0.00033,7]
[322143353,1712848265517,-334.861198,0.00033,7]
[322143354,1712848265526,-334.861198,0.00033,7]
[322143355,1712848265535,-351.83518,0.00033,7]
[322143356,1712848265544,-351.83518,0.00033,7]
[322143357,1712848265553,-959.964371,0.00033,7]
[322143358,1712848265562,-161.021274,0.00033,7]
[322143359,1712848265571,-959.964371,0.00033,7]
[322143360,1712848265579,-161.021274,0.00033,7]
[322143361,1712848265590,-544.705449,0.00033,7]
[322143362,1712848265599,-544.705449,0.00033,7]
[322143363,1712848265609,-226.793385,0.00033,7]
[322143364,1712848265619,-226.793385,0.00033,7]
[322143365,1712848265628,-313.882761,0.00033,7]
[322143366,1712848265638,-1300.20934483,0.00033079,2]
[322143367,1712848265648,-447.16,0.000331,2]
[322143368,1712848265659,-1500.0,0.00033104,2]
[322143369,1712848265668,-150.0,0.00033109,2]
[322143370,1712848265678,-150.0,0.00033116,2]
[322143371,1712848265687,-157.04112,0.00033148,22]
[322143372,1712848265697,-157.95867717,0.00033162,7]
[322143373,1712848265706,-194.8,0.00033165,2]
[322143374,1712848265715,-197.68,0.00033165,2]
[322143375,1712848265725,-334.3,0.00033171,2]
[322143376,1712848265735,-1500.0,0.00033171,2]
[322143377,1712848265744,-66432.12267961,0.00033231,2]
[322143378,1712848265753,-150.0,0.00033234,2]
[322143379,1712848265762,-150.0,0.00033241,2]
[322143380,1712848265771,-150.0,0.00033257,2]
[322143381,1712848265780,-150.0,0.00033273,2]
[322143382,1712848265789,-150.0,0.00033293,2]
[322143383,1712848265798,-2370.47952573,0.00033304,6]
[322143384,1712848265807,-2123.76488424,0.00033312,5]
[322143385,1712848265816,-341.94517088,0.00033312,7]
[322143386,1712848265825,-150.0,0.00033313,2]
[322143387,1712848265836,-150.0,0.00033313,2]
[322143388,1712848265845,-150.28041198,0.00033319,7]
[322143389,1712848265854,-153.4060289,0.00033321,7]
[322143390,1712848265863,-275.08617,0.00033353,30]
[322143391,1712848265873,-8170.9869022,0.00033401,2]
[322143392,1712848265882,-705.6528633,0.00033401,2]
[322143393,1712848265891,-2343.7563803,0.00033401,2]
[322143394,1712848265901,-366.84754843,0.00033405,2]
[322143395,1712848265911,-597.78573682,0.00033413,2]
[322143396,1712848265921,-595.10629194,0.00033413,2]
[322143397,1712848265930,-14342.7922258,0.00033413,2]
[322143398,1712848265940,-281.05525417,0.00033413,2]
[322143399,1712848265949,-155.0,0.00033423,4]
[322143400,1712848265959,-1860.83537477,0.00033424,3]
[322143401,1712848265968,-3109.48033489,0.00033424,3]
[322143402,1712848265979,-500.0,0.00033424,7]
[322143403,1712848265988,-500.0,0.00033424,7]
[322143404,1712848265999,-500.0,0.00033424,7]
[322143405,1712848266008,-420.98524169,0.00033424,7]
[322143406,1712848266018,-500.0,0.00033424,7]
[322143407,1712848266027,-500.0,0.00033424,7]
[322143408,1712848266037,-500.0,0.00033424,7]
[322143409,1712848266046,-500.0,0.00033424,7]
[322143410,1712848266055,-500.0,0.00033424,7]